bitfinex/quotes_ETHUSD_20250903
["timestamp","ask_amount","ask_price","bid_price","bid_amount"]
[1756906969070,2.27118162,4403.0,4402.0,0.496]
[1756906969275,0.001,4403.5,4402.2,2.27158531]
[1756906969505,0.001,4403.5,4402.9,0.1136]
[1756906970411,0.11629598,4403.6,4402.9,0.1136]
[1756906970412,0.35610584,4407.2,4403.6,2.27086928]
[1756906970616,0.35610584,4407.2,4403.0,1.39816]
[1756906970617,0.35610584,4407.2,4405.0,0.792]
[1756906970819,0.35610584,4407.2,4405.1,12.26568611]
[1756906971028,1.747,4409.3,4405.2,3.0]
[1756906971029,3.0,4408.2,4405.2,3.0]
[1756906971326,2.26886184,4407.5,4406.1,2.26956754]
[1756906971616,14.9693009,4408.3,4406.2,6.3921]
[1756906971617,2.26863051,4408.0,4406.2,6.3921]
[1756906971811,3.0,4408.2,4406.2,1.747]
[1756906971812,2.26849961,4408.2,4406.2,1.747]
[1756906971991,2.26849961,4408.2,4405.9,4.172]
[1756906971992,2.26880842,4407.6,4405.9,4.172]
[1756906972187,1.747,4408.4,4405.9,4.172]
[1756906972387,14.9693009,4408.1,4405.9,4.172]
[1756906972714,2.26933292,4406.6,4405.9,4.172]
[1756906972915,2.26923328,4406.8,4405.9,4.172]
[1756906973115,2.26948217,4406.3,4405.9,4.172]
[1756906973278,2.26953759,4406.2,4405.9,4.172]
[1756906973606,1.747,4407.5,4405.9,4.172]
[1756906973909,2.26901434,4407.2,4405.9,4.6431]
[1756906974237,5.26906582,4407.1,4406.8,0.025]
[1756906975189,2.2691688,4406.9,4406.8,0.025]
[1756906975784,2.2691688,4406.9,4405.8,0.025]
[1756906975785,2.26968383,4405.9,4405.8,0.025]
[1756906975998,9.43468383,4405.9,4405.8,0.025]
[1756906976202,9.43568383,4405.9,4405.8,0.025]
[1756906977507,5.26968383,4405.9,4405.8,0.025]
[1756906977707,9.43068383,4405.9,4405.8,0.025]
[1756906978020,9.43068383,4405.9,4404.8,0.025]
[1756906978021,3.0,4405.8,4404.8,0.025]
[1756906978308,2.27019909,4404.9,4404.8,0.025]
[1756906978884,6.06219909,4404.9,4404.8,0.025]
[1756906979110,10.22019909,4404.9,4404.8,0.025]
[1756906979339,10.22019909,4404.9,4404.8,1e-08]
[1756906979642,6.06219909,4404.9,4404.8,1e-08]
[1756906979946,9.42819909,4404.9,4404.8,1e-08]
[1756906980312,9.54179909,4404.9,4404.8,1e-08]
[1756906980639,3.1136,4404.9,4404.8,1e-08]
[1756906980842,1.746,4406.2,4404.8,0.57480001]
[1756906981051,0.1136,4405.6,4404.8,0.57480001]
[1756906981626,2.26963231,4406.0,4404.8,0.57480001]
[1756906981826,2.27005028,4405.2,4404.8,0.57480001]
[1756906982038,2.27017652,4405.0,4404.8,0.57480001]
[1756906982239,3.0,4406.1,4404.8,1e-08]
[1756906982402,0.1136,4405.0,4404.8,1e-08]
[1756906982734,2.27019909,4404.9,4404.8,1e-08]
[1756906983138,0.1136,4405.0,4404.8,1e-08]
[1756906983310,2.38376194,4405.0,4404.8,0.46120001]
[1756906983507,0.1136,4405.3,4404.9,0.4612]
[1756906983725,0.1136,4405.5,4405.0,0.4612]
[1756906983920,0.1136,4405.5,4405.1,0.4612]
[1756906984119,14.9693009,4407.2,4405.2,0.4612]
[1756906984120,0.001,4405.4,4405.2,0.4612]
[1756906984543,0.001,4405.4,4405.1,0.1136]
[1756906984744,0.001,4405.4,4405.3,0.4612]
[1756906985631,16.7153009,4408.5,4405.4,0.792]
[1756906985973,2.26907427,4407.1,4406.6,0.1136]
[1756906986126,0.1136,4407.2,4406.6,0.1136]
[1756906986326,0.1136,4407.2,4406.7,0.4612]
[1756906986535,2.26911075,4407.1,4406.7,0.4612]
[1756906986827,0.1136,4407.2,4406.7,0.4612]
[1756906987027,2.38255444,4407.4,4406.7,0.4612]
[1756906987234,0.1136,4407.4,4406.7,0.4612]
[1756906987457,0.35602074,4408.9,4406.7,2.73047179]
[1756906987763,0.47176622,4411.2,4406.9,2.26912318]
[1756906987764,0.1136,4408.2,4406.9,2.26912318]
[1756906987934,2.26850071,4408.2,4407.7,0.1136]
[1756906988135,0.1136,4408.4,4407.7,0.1136]
[1756906988338,0.022,4409.8,4407.9,2.268654]
[1756906988538,0.022,4409.8,4407.8,0.792]
[1756906988539,0.022,4409.8,4408.4,14.9693009]
[1756906988726,0.022,4409.8,4408.5,6.57909807]
[1756906988922,0.022,4409.8,4408.7,2.26824233]
[1756906989260,2.28918711,4410.8,4408.7,2.26824233]
[1756906989261,0.022,4410.8,4410.7,2.26721382]
[1756906989459,0.6814132,4414.3,4411.3,0.792]
[1756906989672,0.6814132,4414.3,4411.4,1.16559807]
[1756906989821,14.9693009,4414.1,4411.5,0.86285788]
[1756906990028,1.746,4414.0,4411.6,1.7871537]
[1756906990224,1.745,4414.4,4411.7,4.2091537]
[1756906990463,1.745,4414.4,4411.8,0.66551041]
[1756906990711,1.745,4414.4,4411.9,0.66551041]
[1756906991012,1.745,4414.4,4411.7,3.543]
[1756906991013,1.745,4414.4,4412.0,4.14251041]
[1756906991189,2.26470705,4415.6,4412.1,4.6552]
[1756906991528,0.0073,4415.7,4412.1,4.6552]
[1756906991529,0.0073,4415.7,4412.4,0.792]
[1756906991818,0.0073,4415.7,4412.3,0.792]
[1756906992023,0.0073,4415.7,4413.5,3.792]
[1756906992221,0.70898188,4416.6,4413.8,0.792]
[1756906992525,2.26495212,4415.2,4413.9,14.1385]
[1756906992708,2.26505224,4415.0,4414.0,2.2062]
[1756906992917,0.70898188,4416.6,4413.9,6.4783]
[1756906992918,0.70898188,4416.6,4414.1,0.4612]
[1756906993097,2.26521952,4414.6,4414.2,1.745]
[1756906993424,2.26505696,4414.9,4412.9,0.9597]
[1756906993596,0.792,4414.8,4412.9,0.4612]
[1756906993919,6.007,4414.9,4413.0,0.4612]
[1756906993920,1.745,4414.9,4413.0,0.4612]
[1756906994084,0.70898188,4416.6,4413.1,0.4985]
[1756906994299,2.2642666,4416.5,4413.4,2.2658268]
[1756906994498,0.70898188,4416.6,4413.5,6.0747]
[1756906994698,2.26423638,4416.5,4413.7,3.0]
[1756906994898,2.26439019,4416.2,4413.8,4.323]
[1756906995129,0.70898188,4416.6,4413.9,0.4612]
[1756906995331,2.26465864,4415.7,4413.9,0.4612]
[1756906995529,2.26423638,4416.5,4413.9,0.4612]
[1756906995530,2.26510769,4414.9,4414.0,4.324]
[1756906995730,3.0,4416.5,4414.0,4.324]
[1756906995950,3.0,4416.5,4413.9,0.4612]
[1756906995951,0.792,4416.3,4413.9,0.4612]
[1756906996238,11.08016529,4416.2,4413.3,1.744]
[1756906996461,0.70898188,4416.6,4413.3,1.744]
[1756906996462,0.70898188,4416.6,4413.5,2.26577546]
[1756906996599,0.70898188,4416.6,4416.4,2.26427913]
[1756906996917,5.0,4418.0,4416.6,0.792]
[1756906996918,3.287,4418.0,4416.6,0.792]
[1756906997112,3.287,4418.0,4416.9,0.792]
[1756906997322,3.287,4418.0,4416.8,5.26408259]
[1756906997323,3.287,4418.0,4417.0,1.69352826]
[1756906997523,3.287,4418.0,4417.1,4.8282]
[1756906997835,3.287,4418.0,4417.2,0.4612]
[1756906998008,3.287,4418.0,4417.2,4.8282]
[1756906998342,3.287,4418.0,4417.3,1.2532]
[1756906998499,3.287,4418.0,4417.9,0.1128]
[1756906998702,3.287,4418.0,4417.9,0.4612]
[1756906998937,3.287,4418.0,4417.9,3.38223886]
[1756906999108,1.0,4419.0,4417.9,6.56672]
[1756906999314,1.0,4419.0,4418.0,4.373]
[1756906999643,1.0,4419.0,4417.9,5.9092]
[1756906999644,0.0212,4418.8,4418.1,4.377]
[1756906999819,0.0212,4418.8,4417.3,6.119]
[1756907000161,0.0212,4418.8,4413.8,0.025]
[1756907000162,0.9124,4418.7,4416.5,6.122]
[1756907000316,0.0212,4418.8,4415.8,5.448]
[1756907000317,0.0212,4418.8,4416.6,7.1954]
[1756907000511,0.4777,4418.8,4416.7,1.743]
[1756907000712,2.26341933,4418.1,4416.8,3.999]
[1756907000936,0.003,4417.8,4416.8,4.024]
[1756907001115,0.003,4417.8,4416.9,4.4]
[1756907001320,0.003,4417.8,4416.8,0.025]
[1756907001946,2.26403133,4416.9,4416.8,0.025]
[1756907002107,5.72053133,4416.9,4416.8,0.025]
[1756907002306,0.792,4416.8,4415.8,0.025]
[1756907002506,0.792,4416.5,4414.8,0.025]
[1756907002749,2.26441845,4416.2,4414.9,1.742]
[1756907003055,0.792,4416.6,4414.8,0.025]
[1756907003250,3.0,4416.0,4414.8,0.025]
[1756907003448,2.26505696,4414.9,4414.8,0.025]
[1756907003955,6.17745696,4414.9,4414.8,0.025]
[1756907004154,3.17745696,4414.9,4414.8,0.025]
[1756907004315,10.59045696,4414.9,4414.8,0.025]
[1756907004521,10.59045696,4414.9,4414.8,1e-08]
[1756907004522,11.38245696,4414.9,4414.8,1e-08]
[1756907004745,6.96945696,4414.9,4414.8,1e-08]
[1756907004948,10.59145696,4414.9,4414.8,1e-08]
[1756907005144,11.38345696,4414.9,4414.8,1e-08]
[1756907005316,6.96945696,4414.9,4414.8,1e-08]
[1756907005523,0.09082559,4415.5,4414.8,1e-08]
[1756907005819,2.26496563,4415.1,4414.8,1e-08]
[1756907006052,2.26497187,4415.1,4414.8,1e-08]
[1756907006248,3.0,4415.7,4414.8,1e-08]
[1756907006559,3.0,4415.9,4414.8,1e-08]
[1756907006949,3.0,4415.5,4414.8,1e-08]
[1756907007264,0.4565,4417.0,4414.8,1e-08]
[1756907007466,0.4565,4417.0,4414.8,1.74200001]
[1756907007630,0.4565,4417.0,4414.9,0.2114]
[1756907007974,2.26461974,4415.8,4414.8,1.74200001]
[1756907008250,0.025,4416.8,4414.9,6.6982]
[1756907008461,0.025,4416.8,4415.5,0.792]
[1756907008618,0.025,4416.8,4416.7,2.26413385]
[1756907008952,0.025,4416.8,4416.7,8.53673385]
[1756907009121,0.025,4416.8,4416.7,8.99793385]
[1756907009337,0.025,4416.8,4416.7,9.33313614]
[1756907009534,0.025,4416.8,4416.7,2.65200229]
[1756907009737,0.025,4416.8,4416.7,6.7308]
[1756907009974,0.025,4416.8,4416.7,1.8556]
[1756907010173,0.025,4416.8,4416.7,6.2686]
[1756907010343,0.025,4416.8,4416.7,1.8556]
[1756907010538,0.025,4416.8,4416.7,2.2996]
[1756907011270,0.025,4416.8,4416.7,7.61418484]
[1756907011455,0.025,4416.8,4416.7,7.61618484]
[1756907011655,0.025,4416.8,4416.7,9.88031869]
[1756907011856,0.025,4416.8,4416.7,5.46131869]
[1756907012056,0.025,4416.8,4416.7,2.75318484]
[1756907012245,0.025,4416.8,4416.7,6.2726]
[1756907012447,0.025,4416.8,4416.7,0.1136]
[1756907012672,0.025,4416.8,4415.0,0.444]
[1756907012673,0.025,4416.8,4416.4,0.1136]
[1756907013068,0.025,4416.8,4416.7,0.1136]
[1756907013235,0.025,4416.8,4416.7,8.53773385]
[1756907013440,0.025,4416.8,4416.7,10.10632863]
[1756907013675,0.025,4416.8,4416.7,10.89832863]
[1756907013978,0.025,4416.8,4416.7,9.48032863]
[1756907014141,0.025,4416.8,4416.7,3.42419478]
[1756907014470,0.028,4417.8,4417.7,2.26362134]
[1756907014687,0.028,4417.8,4417.7,10.21697134]
[1756907014835,0.028,4417.8,4417.1,4.434]
[1756907015036,0.028,4417.8,4417.0,1.741]
[1756907015374,0.028,4417.8,4417.1,4.439]
[1756907015671,0.028,4417.8,4417.2,4.438]
[1756907016072,0.028,4417.8,4417.4,2.26377207]
[1756907016369,0.028,4417.8,4417.7,6.05562134]
[1756907016572,0.028,4417.8,4417.7,6.25765865]
[1756907016776,0.028,4417.8,4417.7,6.70165865]
[1756907016976,0.001,4418.0,4417.7,6.70165865]
[1756907016977,0.001,4418.0,4417.9,6.05551886]
[1756907017293,1.005,4420.0,4418.7,3.05510905]
[1756907017442,1.005,4420.0,4418.7,16.16014636]
[1756907017639,1.005,4420.0,4418.7,12.50834636]
[1756907017843,1.005,4420.0,4418.7,16.97034636]
[1756907018152,1.005,4420.0,4418.9,3.05500663]
[1756907018352,1.005,4420.0,4418.9,4.99804394]
[1756907018568,1.005,4420.0,4418.9,12.90204394]
[1756907018744,1.005,4420.0,4418.9,6.41103731]
[1756907018943,1.005,4420.0,4419.7,5.262597]
[1756907019141,0.022,4422.8,4419.7,5.262597]
[1756907019142,0.35473129,4425.2,4420.0,0.792]
[1756907019469,0.18,4427.1,4421.3,3.792]
[1756907019470,0.67971647,4425.7,4421.3,3.792]
[1756907019781,0.18,4427.1,4422.2,2.26126847]
[1756907020091,0.35452126,4428.3,4422.2,2.26126847]
[1756907020092,0.67935014,4427.3,4423.3,3.0]
[1756907020291,2.30837933,4428.0,4423.4,10.40792075]
[1756907020495,0.18,4427.8,4423.5,3.20203731]
[1756907020775,1.741,4427.3,4423.7,3.792]
[1756907021073,0.18,4427.8,4423.9,3.792]
[1756907021074,0.35435213,4426.0,4423.9,3.792]
[1756907021294,0.35435213,4426.0,4423.6,2.185]
[1756907021295,0.35435213,4426.0,4423.6,1.741]
[1756907021476,0.35435213,4426.0,4423.7,4.511]
[1756907021796,0.4657,4426.1,4423.6,2.185]
[1756907021797,5.25947851,4425.8,4423.8,4.52]
[1756907022001,2.25977309,4425.3,4423.8,4.52]
[1756907022203,0.4657,4426.6,4424.0,0.792]
[1756907022362,0.022,4426.8,4423.9,0.444]
[1756907022706,0.9496,4426.7,4423.8,1.84]
[1756907022863,0.792,4426.4,4423.4,1.552]
[1756907023066,2.26072922,4423.4,4423.2,1.74]
[1756907023365,3.0,4426.0,4423.2,1.74]
[1756907023366,0.4657,4427.6,4423.3,5.4376]
[1756907023690,0.4657,4427.6,4423.4,3.444]
[1756907023855,0.4657,4427.6,4425.3,2.25972189]
[1756907024058,0.4657,4427.6,4423.5,5.70465332]
[1756907024059,2.25871079,4427.4,4425.4,6.522]
[1756907024256,2.25887461,4427.0,4425.5,6.52]
[1756907024491,0.4657,4427.6,4425.6,1.74]
[1756907024788,2.37147008,4427.4,4426.8,0.1128]
[1756907025093,0.1128,4427.4,4426.9,1.74]
[1756907025402,2.25548331,4433.7,4427.0,3.9126]
[1756907025603,0.35413534,4429.9,4427.1,0.56526]
[1756907025801,0.35413534,4429.9,4427.2,0.444]
[1756907026100,0.01304622,4431.1,4429.6,2.25751828]
[1756907026298,0.01304622,4431.1,4429.7,6.979]
[1756907026467,0.01304622,4431.1,4429.7,1.21320206]
[1756907026668,2.25712502,4430.5,4429.1,6.541]
[1756907026872,2.25712502,4430.5,4428.8,0.61370189]
[1756907026873,2.25758202,4429.6,4428.8,0.16970189]
[1756907027180,0.4657,4430.7,4428.4,4.807]
[1756907027507,3.0,4430.1,4427.0,1.739]
[1756907027658,3.0,4429.8,4427.0,1.739]
[1756907027855,3.0,4429.8,4426.2,0.444]
[1756907027856,0.4657,4429.7,4426.2,0.444]
[1756907028087,2.25759115,4429.5,4426.2,0.444]
[1756907028290,0.4657,4429.4,4426.2,0.444]
[1756907028497,2.25942122,4426.0,4425.8,0.025]
[1756907028855,2.25821915,4428.3,4425.8,0.025]
[1756907029160,2.25845792,4427.8,4425.9,4.761]
[1756907029360,0.4657,4428.9,4426.0,0.4786]
[1756907029679,3.0,4428.8,4426.0,0.4786]
[1756907029879,2.2583936,4428.0,4426.1,0.444]
[1756907030088,2.25794797,4428.8,4426.2,6.54]
[1756907030281,0.4657,4428.9,4426.3,0.97219126]
[1756907030487,2.25855077,4427.7,4426.4,4.801]
[1756907030688,2.25850921,4427.7,4426.4,4.801]
[1756907031002,0.4657,4428.9,4426.4,4.801]
[1756907031160,3.0,4428.8,4426.2,1.738]
[1756907031362,2.25853966,4427.7,4426.3,5.06706]
[1756907031587,2.25789699,4428.9,4426.2,1.738]
[1756907031799,0.4657,4428.1,4425.8,0.025]
[1756907032003,2.25835591,4428.0,4425.8,0.025]
[1756907032171,0.4657,4428.9,4425.9,0.444]
[1756907032369,2.25799896,4428.7,4426.0,2.4800565]
[1756907032580,0.4657,4428.9,4425.9,0.444]
[1756907032581,3.0,4428.8,4425.9,0.444]
[1756907032762,2.25810093,4428.5,4425.8,0.025]
[1756907032962,2.25820396,4428.3,4425.8,0.025]
[1756907033198,2.25837179,4428.0,4426.8,0.025]
[1756907033397,2.25830491,4428.1,4426.8,1.763]
[1756907033557,0.4839,4428.7,4426.8,1.763]
[1756907033761,0.4839,4428.7,4426.9,2.25891707]
[1756907033997,0.4657,4429.7,4426.9,0.94459043]
[1756907034325,0.4839,4430.1,4427.0,6.667]
[1756907034461,1.741,4430.3,4427.1,4.236]
[1756907034667,2.25749636,4429.7,4427.3,3.0]
[1756907034900,2.25755842,4429.6,4427.4,0.444]
[1756907035204,1.741,4430.3,4427.5,0.9027]
[1756907035205,0.4657,4429.7,4427.5,0.9027]
[1756907035414,0.4657,4429.7,4427.6,4.783]
[1756907035562,0.4657,4429.7,4428.5,0.1128]
[1756907035563,2.25786522,4429.0,4428.5,0.1128]
[1756907035762,0.1128,4429.1,4428.5,0.1128]
[1756907036165,0.1128,4429.1,4428.1,1.738]
[1756907036166,2.25830111,4428.2,4427.0,1.737]
[1756907036474,0.4657,4428.3,4427.0,1.737]
[1756907036800,3.0,4428.8,4427.0,1.737]
[1756907036960,1.737,4429.4,4427.0,1.737]
[1756907036961,0.4657,4429.7,4427.0,2.3572]
[1756907037162,0.4969,4430.3,4427.2,0.792]
[1756907037163,2.25741465,4429.9,4427.2,0.792]
[1756907037363,0.4969,4430.3,4427.3,5.874]
[1756907037590,0.4657,4430.2,4427.3,5.874]
[1756907037789,2.25743825,4429.8,4427.3,6.65272]
[1756907037995,0.4657,4429.7,4427.3,5.43]
[1756907038194,0.01,4429.9,4427.4,4.782]
[1756907038195,2.25825353,4428.3,4427.4,4.782]
[1756907038396,2.25825353,4428.3,4427.0,1.737]
[1756907038397,2.2581588,4428.4,4427.3,4.779]
[1756907038602,2.25769308,4429.3,4427.4,4.777]
[1756907038902,0.4657,4429.6,4427.8,0.025]
[1756907039426,0.4657,4429.6,4428.0,2.25830841]
[1756907039427,2.25774494,4429.2,4428.0,2.25830841]
[1756907039567,3.0,4430.0,4427.9,1.737]
[1756907039979,2.2579021,4428.9,4427.9,1.737]
[1756907040274,1.737,4430.1,4428.0,0.4394]
[1756907040463,2.25738528,4430.0,4428.1,4.768]
[1756907040676,2.25724417,4430.2,4428.0,2.69773493]
[1756907040871,0.4969,4430.3,4428.8,0.025]
[1756907040872,0.013,4430.3,4428.8,0.025]
[1756907041100,0.013,4430.3,4428.9,6.9424]
[1756907041308,0.013,4430.3,4429.6,2.25751651]
[1756907041615,0.013,4430.3,4429.8,2.25743825]
[1756907041769,0.013,4430.3,4429.8,3.99443825]
[1756907042177,0.013,4430.3,4427.8,2.2834157]
[1756907042178,0.013,4430.3,4428.8,0.025]
[1756907042389,0.013,4430.3,4429.5,1.737]
[1756907043006,2.25754018,4429.6,4429.5,1.737]
[1756907043209,2.25754018,4429.6,4428.8,0.025]
[1756907043210,0.013,4430.3,4428.8,0.025]
[1756907043421,0.013,4430.3,4429.5,6.5]
[1756907043720,0.013,4430.3,4429.8,2.25743825]
[1756907044023,0.013,4430.3,4429.8,3.48207609]
[1756907044324,0.013,4430.3,4429.8,0.4394]
[1756907044626,0.013,4430.3,4429.5,1.737]
[1756907044833,2.25754018,4429.6,4429.5,1.737]
[1756907045134,2.27018738,4430.3,4428.8,0.05]
[1756907045418,0.013,4430.3,4428.8,0.05]
[1756907045618,0.013,4430.3,4428.8,0.4894]
[1756907045931,0.013,4430.3,4429.0,2.25784601]
[1756907046080,0.013,4430.3,4429.8,0.1128]
[1756907046425,0.013,4430.3,4429.8,6.6898]
[1756907046581,0.013,4430.3,4429.8,1.8488]
[1756907046782,0.013,4430.3,4429.8,6.6878]
[1756907047310,2.25743825,4429.8,4428.8,0.05]
[1756907047522,0.1128,4429.2,4428.8,0.025]
[1756907047676,0.9407,4429.9,4428.8,0.025]
[1756907047677,2.25785612,4429.0,4428.8,0.025]
[1756907047877,2.25769527,4429.3,4428.8,0.025]
[1756907047878,2.37069699,4428.9,4428.8,0.025]
[1756907048125,2.82729699,4428.9,4428.8,0.025]
[1756907048329,2.82649699,4428.9,4428.8,0.025]
[1756907048811,0.01,4429.9,4428.8,0.025]
[1756907049015,0.1128,4428.9,4428.8,0.025]
[1756907049314,0.1128,4428.9,4428.8,0.22745461]
[1756907049481,2.25749305,4429.7,4428.8,0.22745461]
[1756907049678,0.1128,4429.7,4429.1,0.1128]
[1756907049880,0.1128,4429.7,4428.8,0.025]
[1756907049881,0.01,4429.9,4429.6,0.1128]
[1756907050131,0.01,4429.9,4429.4,0.1128]
[1756907050306,0.01,4429.9,4428.8,0.025]
[1756907050513,0.01,4429.9,4428.9,4.823]
[1756907050832,0.01,4429.9,4429.8,2.25743825]
[1756907051039,0.01,4429.9,4429.8,6.561]
[1756907051177,0.01,4429.9,4429.5,2.25759018]
[1756907051178,0.01,4429.9,4429.4,1.736]
[1756907051398,0.01,4429.9,4429.6,0.4394]
[1756907051613,0.01,4429.9,4429.8,2.25743825]
[1756907051773,0.01,4429.9,4429.8,7.29207786]
[1756907051979,0.01,4429.9,4429.8,5.03463961]
[1756907052175,0.01,4429.9,4429.4,1.736]
[1756907052414,0.01,4429.9,4428.9,0.20273685]
[1756907052588,0.01,4429.9,4428.8,0.025]
[1756907052589,2.25776164,4429.2,4428.8,0.025]
[1756907052790,2.25780476,4429.1,4428.8,0.025]
[1756907053014,2.25789699,4428.9,4428.8,0.025]
[1756907053620,3.18859699,4428.9,4428.8,0.025]
[1756907053826,2.25840691,4427.9,4426.9,0.20370635]
[1756907053996,0.4566,4429.7,4427.4,1.736]
[1756907054331,2.25840691,4427.9,4427.4,1.736]
[1756907054624,2.25840691,4427.9,4426.9,0.20381435]
[1756907054822,2.25840691,4427.9,4427.0,0.20381435]
[1756907055009,2.71500691,4427.9,4426.8,0.025]
[1756907055209,0.4566,4428.8,4426.9,0.20382098]
[1756907055511,2.25759115,4429.5,4427.9,0.2036536]
[1756907055711,2.1926,4429.6,4428.0,0.2036536]
[1756907056022,3.0,4429.5,4427.6,1.736]
[1756907056232,2.1926,4429.6,4427.9,0.20367059]
[1756907056385,2.1926,4429.6,4428.0,0.20367059]
[1756907056585,2.1926,4429.6,4428.1,0.20367059]
[1756907056800,2.1926,4429.6,4426.8,1.761]
[1756907056801,2.25820292,4428.3,4426.8,1.761]
[1756907057005,2.25832893,4428.1,4426.9,0.20382004]
[1756907057325,2.25832893,4428.1,4427.0,0.20382004]
[1756907057496,2.25836482,4428.0,4426.8,1.761]
[1756907057695,2.25840691,4427.9,4426.9,0.20393362]
[1756907057921,3.18910691,4427.9,4426.8,1.761]
[1756907058300,2.25823049,4428.3,4426.8,1.761]
[1756907058499,2.25820256,4428.4,4427.1,2.25881306]
[1756907058726,2.25825685,4428.2,4427.2,2.25875956]
[1756907058923,2.2580315,4428.7,4427.7,1.736]
[1756907059112,0.4741,4429.2,4427.7,1.736]
[1756907059638,2.25785856,4429.0,4427.7,1.736]
[1756907059799,0.4741,4429.2,4427.7,1.736]
[1756907060325,2.25840691,4427.9,4427.7,1.736]
[1756907060543,2.37120691,4427.9,4427.0,1.736]
[1756907060743,2.37120691,4427.9,4426.8,0.025]
[1756907060744,3.30190691,4427.9,4426.8,0.025]
[1756907061243,3.30190691,4427.9,4427.8,0.029]
[1756907061642,5.84530691,4427.9,4427.8,0.029]
[1756907061936,5.37120691,4427.9,4427.8,0.029]
[1756907062230,6.30190691,4427.9,4427.8,0.029]
[1756907062539,4.0435,4427.9,4426.8,0.025]
[1756907062751,2.25845792,4427.8,4426.8,0.025]
[1756907062894,2.37171707,4426.9,4426.8,0.025]
[1756907063090,0.1128,4427.1,4426.8,0.025]
[1756907063317,0.0368,4427.1,4426.8,0.025]
[1756907063503,2.25810093,4428.5,4426.9,0.4394]
[1756907063714,0.1128,4427.6,4427.0,0.1128]
[1756907064026,2.1926,4428.7,4426.8,0.025]
[1756907064027,2.2587052,4427.4,4427.1,0.2279]
[1756907064328,0.1128,4427.3,4427.1,0.2279]
[1756907064540,2.258764,4427.2,4427.1,0.2279]
[1756907064829,0.1128,4427.3,4427.1,0.4320135]
[1756907065129,0.1128,4427.3,4427.2,0.2041135]
[1756907065442,2.37151298,4427.3,4427.2,0.2041135]
[1756907065596,0.1128,4427.3,4427.2,0.2041135]
[1756907065818,2.37151298,4427.3,4427.2,0.2041135]
[1756907066150,2.37151298,4427.3,4427.1,0.2279]
[1756907066151,2.03101707,4426.9,4426.8,0.025]
[1756907066464,2.14381707,4426.9,4426.8,0.025]
[1756907066628,0.1128,4426.9,4426.8,0.025]
[1756907066831,0.1128,4426.9,4426.8,0.45693357]
[1756907067226,2.25833038,4428.1,4426.8,0.45693357]
[1756907067428,0.1128,4427.3,4427.0,0.2279]
[1756907067614,2.2588108,4427.2,4427.1,0.43193357]
[1756907068240,0.1128,4427.6,4427.1,0.87133357]
[1756907068445,2.25871298,4427.3,4427.2,0.43193357]
[1756907068751,0.1128,4427.6,4427.2,0.43193357]
[1756907068919,2.25820292,4428.3,4426.8,0.3657]
[1756907069120,2.25891268,4427.0,4426.9,0.20396649]
[1756907069341,5.25794215,4428.9,4426.9,0.20396649]
[1756907069653,0.792,4429.5,4427.0,0.20396649]
[1756907069654,2.25875115,4427.3,4427.0,0.20396649]
[1756907069818,5.25810093,4428.5,4426.8,0.025]
[1756907070151,2.25886604,4427.0,4426.9,0.20396095]
[1756907070453,2.25891707,4426.9,4426.8,0.025]
[1756907070826,2.69871707,4426.9,4426.8,0.025]
[1756907071155,6.21431707,4426.9,4426.8,1e-08]
[1756907071327,2.25891707,4426.9,4426.8,1e-08]
[1756907072544,2.25830491,4428.1,4426.8,1e-08]
[1756907072720,2.25799896,4428.7,4426.9,0.20398486]
[1756907072920,2.25815192,4428.4,4427.0,0.20398486]
[1756907073132,2.25810093,4428.5,4427.1,0.20398486]
[1756907073133,2.25811944,4428.5,4427.1,0.20398486]
[1756907073332,0.4398,4428.6,4426.9,0.20395877]
[1756907073555,0.4398,4428.6,4426.8,1e-08]
[1756907073855,3.0,4428.5,4426.9,0.20393619]
[1756907074030,2.25891707,4426.9,4426.8,1e-08]
[1756907074229,0.4398,4428.4,4426.8,1e-08]
[1756907074431,3.0,4428.2,4426.8,1e-08]
[1756907074630,2.25853737,4427.7,4426.8,1e-08]
[1756907074842,2.25855994,4427.6,4426.8,1e-08]
[1756907075020,2.25891707,4426.9,4426.8,1e-08]
[1756907076520,0.4398,4427.7,4426.8,1e-08]
[1756907076728,2.25825391,4428.2,4426.8,1e-08]
[1756907077058,5.25835591,4428.0,4426.8,1e-08]
[1756907077243,0.4398,4428.4,4426.8,1e-08]
[1756907077556,3.0,4428.3,4426.8,1e-08]
[1756907077854,0.025,4428.8,4426.9,0.4631]
[1756907078160,2.25815556,4428.4,4427.5,2.25860413]
[1756907078462,0.025,4428.8,4427.5,0.4631]
[1756907078661,2.25816056,4428.4,4427.5,2.72170418]
[1756907078827,2.2583074,4428.1,4427.5,0.4631]
[1756907079156,0.025,4428.8,4427.0,1.737]
[1756907079361,2.25881502,4427.1,4427.0,1.737]
[1756907079564,0.1128,4427.7,4427.0,2.54419]
[1756907079723,2.2829835,4428.8,4427.0,2.54419]
[1756907079724,0.1128,4428.3,4427.4,2.25865403]
[1756907079920,0.1128,4428.3,4427.1,0.4631]
[1756907079921,0.1128,4428.3,4427.7,0.1128]
[1756907080356,2.25834127,4428.1,4427.7,0.1128]
[1756907080557,0.025,4428.8,4427.1,0.4631]
[1756907080863,2.37133138,4427.7,4427.1,0.1128]
[1756907081070,2.25861437,4427.5,4427.1,0.1128]
[1756907081244,2.25855994,4427.6,4427.1,0.1128]